fUST/lending_fUST_20240412
["ID","MTS","AMOUNT","RATE_DAILY","PERIOD"]
[322154031,1712855355102,-8453.72344547,0.00030301,2]
[322154032,1712855355121,-1106.9161838,0.00030301,2]
[322154033,1712855355140,-1441.76391013,0.00030812,2]
[322154061,1712855432244,-6227.78529929,0.0002849,2]
[322154062,1712855432255,-20.48712377,0.00030812,2]
[322154063,1712855432266,-176.943579,0.000312,2]
[322154064,1712855432276,-1243.22813176,0.00031494,4]
[322154065,1712855432286,-200.0,0.00031495,2]
[322154066,1712855432295,-250.0,0.00031594,2]
[322154067,1712855432305,-657.405082,0.00031677,2]
[322154068,1712855432316,-1211.03128397,0.00032,2]
[322154069,1712855432325,-150.0,0.00033,2]
[322154070,1712855432336,-150.0,0.00033151,2]
[322154071,1712855432346,-948.4548208,0.00033201,2]
[322154072,1712855432356,-400.0,0.00033217,2]
[322154073,1712855432366,-400.0,0.00033217,2]
[322154074,1712855432376,-3731.81841185,0.00033218,2]
[322154075,1712855432390,-21168.18158815,0.00033218,2]
[322154076,1712855432402,-152.59364253,0.00033796,7]
[322154077,1712855432413,-1211.03128397,0.0003392,2]
[322154078,1712855432422,-152.59364253,0.00034131,7]
[322154079,1712855432432,-152.59364253,0.00034358,7]
[322154080,1712855432442,-150.0,0.00034521,2]
[322154081,1712855432451,-1332.001332,0.00034729,6]
[322154082,1712855432460,-62111.93956461,0.0003488,120]
[322154083,1712855432469,-152.59364253,0.00034994,7]
[322154084,1712855432479,-596.36211063,0.00035,2]
[322154085,1712855432488,-669.10203133,0.00035,4]
[322154086,1712855432497,-152.59364253,0.00035024,7]
[322154087,1712855432506,-152.59364253,0.00035028,7]
[322154088,1712855432515,-152.59364253,0.00035181,7]
[322154089,1712855432525,-166.22814114,0.00035241,7]
[322154090,1712855432534,-155.13836716,0.00035429,2]
[322154091,1712855432544,-2000.0,0.00035516,2]
[322154092,1712855432553,-155.13836715,0.00035516,2]
[322154093,1712855432563,-500.0,0.00035528,7]
[322154094,1712855432572,-500.0,0.00035528,7]
[322154095,1712855432582,-330.33664003,0.00035528,7]
[322154096,1712855432592,-11364.07727109,0.00035529,4]
[322154097,1712855432601,-177.25,0.000356,10]
[322154098,1712855432611,-188.6336911,0.00035614,2]
[322154099,1712855432620,-1441.44645946,0.00035614,4]
[322154100,1712855432629,-215.58014229,0.00035614,4]
[322154101,1712855432639,-193.67870914,0.00035614,4]
[322154102,1712855432648,-161.51552598,0.00035614,4]
[322154103,1712855432660,-892.50404502,0.00035614,4]
[322154104,1712855432670,-408.00768074,0.00035614,4]
[322154105,1712855432682,-155.0404763,0.00035614,4]
[322154106,1712855432691,-517.14528377,0.00035614,4]
[322154107,1712855432701,-263.56036207,0.00035614,4]
[322154108,1712855432711,-936.52982101,0.00035614,4]
[322154109,1712855432720,-207.33993593,0.00035614,4]
[322154110,1712855432729,-194.92837239,0.00035614,4]
[322154111,1712855432740,-172.6183608,0.00035614,4]
[322154112,1712855432749,-519.61057671,0.00035614,4]
[322154113,1712855432759,-154.86062544,0.00035614,4]
[322154114,1712855432769,-400.0,0.00035614,2]
[322154115,1712855432778,-1267.37095814,0.00035615,4]
[322154148,1712855438019,-154.86062544,0.00028489,2]
[322154150,1712855438029,-3801.51345789,0.00035615,4]
[322154152,1712855438038,-2086.53808771,0.00035616,5]
[322154154,1712855438047,-1320.48028038,0.00035616,4]
[322154167,1712855438168,-2362.66883397,0.00035616,4]
[322154170,1712855438178,-500.0,0.00035616,14]
[322154174,1712855438188,-500.0,0.00035616,14]
[322154178,1712855438197,-500.0,0.00035616,14]
[322154182,1712855438207,-500.0,0.00035616,14]
[322154185,1712855438216,-493.86179217,0.00035616,14]
[322154188,1712855438225,-109.83681449,0.00035616,14]
[322154208,1712855438357,-392.56815727,0.00035616,14]
[322154210,1712855438366,-500.0,0.00035616,14]
[322154212,1712855438376,-500.0,0.00035616,14]
[322154214,1712855438384,-500.0,0.00035616,14]
[322154216,1712855438393,-516.20327059,0.00035616,14]
[322154218,1712855438403,-502.69986592,0.00035616,14]
[322154220,1712855438412,-12.60081208,0.00035616,14]
[322154244,1712855438880,-301.265,0.00035616,14]
[322154245,1712855438892,-186.13418792,0.00035616,14]
[322154246,1712855438901,-579.46304835,0.00035616,14]
[322154247,1712855438912,-502.57783947,0.00035616,14]
[322154248,1712855438921,-500.0,0.00035616,14]
[322154250,1712855438931,-46.69333498,0.00035616,14]
[322154252,1712855438942,-847.51666502,0.00035616,14]
[322154254,1712855438951,-292.9000006,0.00035616,7]
[322154256,1712855438960,-500.0,0.00035616,14]
[322154257,1712855438970,-503.02102843,0.00035616,14]
[322154259,1712855438979,-228.57221835,0.00035616,14]
[322154383,1712855440098,-271.42778165,0.00035616,14]
[322154385,1712855440107,-591.51596619,0.00035616,14]
[322154387,1712855440117,-50.64277655,0.00035616,14]
[322154389,1712855440128,-449.35722345,0.00035616,14]
[322154391,1712855440138,-503.06505724,0.00035616,14]
[322154393,1712855440147,-501.72216263,0.00035616,14]
[322154395,1712855440157,-502.08137535,0.00035616,14]
[322154397,1712855440167,-500.0,0.00035616,14]
[322154399,1712855440176,-500.0,0.00035616,14]
[322154401,1712855440185,-500.0,0.00035616,14]
[322154403,1712855440194,-249.62951119,0.00035616,14]
[322154405,1712855440206,-703.98358527,0.00035616,14]
[322154553,1712855443224,-251.88690354,0.00035616,14]
[322154554,1712855443233,-500.0,0.00035616,14]
[322154555,1712855443243,-502.37461869,0.00035616,14]
[322154556,1712855443252,-498.23847777,0.00035616,14]
[322155581,1712855465178,5232.1725685,0.00021099,2]
[322155582,1712855494132,155.21440017,0.00021099,2]
[322155583,1712855499183,16844.96325997,0.00021099,2]
[322155585,1712856053267,6729.60772925,0.00021099,2]
[322155586,1712856065134,1423.8,0.0002103,2]
[322155610,1712856520646,471.22740352,0.00018999,2]
[322155611,1712856547146,-687.50427823,0.00022838,2]
[322155612,1712856547166,-154.86062544,0.00022839,2]
[322155613,1712856547291,-5569.16345896,0.00022839,2]
[322155614,1712856547316,-154.86062544,0.00022839,2]
[322155615,1712856547335,-1043.3259765,0.0002284,2]
[322155616,1712856547357,-282.87085409,0.00022841,2]
[322155617,1712856547378,-200.0,0.00022842,2]
[322155618,1712856547400,-300.0,0.00023561,2]
[322155619,1712856547420,-300.0,0.00023561,2]
[322155620,1712856547442,-2446.25979371,0.00023562,2]
[322155621,1712856547464,-2094.14637252,0.00023562,2]
[322155622,1712856547486,-1546.68192907,0.00023562,2]
[322155623,1712856547507,-185.68184053,0.00023563,2]
[322155624,1712856547527,-181.13273271,0.00023563,2]
[322155625,1712856547547,-1486.45349515,0.00023563,2]
[322155626,1712856547570,-1964.94666504,0.00023563,2]
[322155627,1712856547591,-2581.208065,0.00023563,2]
[322155628,1712856547610,-470.227429,0.00023564,2]
[322155629,1712856547631,-3737.50409594,0.00023564,2]
[322155630,1712856547652,-158.59081426,0.00023564,2]
[322155631,1712856547672,-272.01530939,0.00023564,2]
[322155632,1712856547692,-207.33993593,0.00023564,2]
[322155633,1712856547713,-584.97431304,0.00023564,2]
[322155634,1712856547734,-936.52982101,0.00023565,2]
[322155635,1712856547755,-1931.50577547,0.00023565,2]
[322155636,1712856547775,-524.95978901,0.00023565,2]
[322155637,1712856547796,-303.95639067,0.00023566,2]
[322155638,1712856547819,-154.86062544,0.00023566,2]
[322155639,1712856547839,-203.62682436,0.00023566,2]
[322155640,1712856547861,-538.47573593,0.00023566,2]
[322155641,1712856547883,-193.09908054,0.00023566,2]
[322155642,1712856547905,-22755.98720092,0.00023566,2]
[322155643,1712856547926,-154.86062544,0.00023567,2]
[322155644,1712856547949,-875.2599691,0.00023567,2]
[322155645,1712856547970,-927.004965,0.00023568,2]
[322155646,1712856547991,-11370.73589184,0.00023756,2]
[322155647,1712856548012,-610.2682838,0.00023757,2]
[322155648,1712856548035,-471.22740352,0.00023999,2]
[322155649,1712856548059,-764.65957405,0.00024563,2]
[322155650,1712856548079,-5786.1213342,0.00024564,2]
[322155651,1712856548101,-263.56036207,0.00024564,2]
[322155652,1712856548122,-59008.25304668,0.00024564,2]
[322155653,1712856548142,-925.31693807,0.00024565,2]
[322155654,1712856548162,-473.43587504,0.00024565,2]
[322155655,1712856548183,-563.04815704,0.00024565,2]
[322155656,1712856548204,-189.939362,0.00024569,2]
[322155657,1712856548223,-266.39570823,0.00024569,2]
[322155658,1712856548243,-532.19327517,0.00024569,2]
[322155659,1712856548263,-405.67865039,0.00024569,2]
[322155660,1712856548282,-709.2300565,0.00024572,2]
[322155661,1712856548302,-923.76277952,0.00025,2]
[322155662,1712856548325,-306.452567,0.00025468,2]
[322155663,1712856548345,-420.0,0.00025562,2]
[322155664,1712856548366,-300.0,0.0002557,2]
[322155665,1712856548387,-13613.52171636,0.00025583,2]
[322155666,1712856556165,-1308.15892502,0.00022838,2]
[322155667,1712856556271,-868.9127129,0.00022838,2]
[322155668,1712856556291,-563.04815704,0.00022838,2]
[322155669,1712856556311,-925.31693807,0.00022838,2]
[322155670,1712856556342,-263.56036207,0.00023563,2]
[322155671,1712856556361,-155.0,0.00024562,2]
[322155672,1712856556383,-6546.7338449,0.00025583,2]
[322155673,1712856556416,-4739.74443874,0.00025583,2]
[322155674,1712856556439,-420.0,0.00025917,2]
[322155675,1712856556459,-2074.04646429,0.00026378,2]
[322155676,1712856556478,-423.3179575,0.00026386,2]
[322155677,1712856556500,-275.74891212,0.00027397,2]
[322155678,1712856556527,-161.9679258,0.00027397,2]
[322155679,1712856556550,-587.0,0.00027733,2]
[322155680,1712856556572,-198.537417,0.00027769,2]
[322155681,1712856556592,-306.45256698,0.0002798,2]
[322155682,1712856556612,-587.0,0.00028509,2]
[322155683,1712856556632,-1013.12488908,0.00028661,2]
[322155684,1712856556652,-155.0,0.0002867,2]
[322155685,1712856556673,-471.22740352,0.00028999,2]
[322155686,1712856559003,154.86062544,0.00028491,2]
[322155687,1712856563131,-3734.12305776,0.00030088,4]
[322155688,1712856563152,-167.06533239,0.00030088,4]
[322155689,1712856563172,-271.77187923,0.00030088,4]
[322155690,1712856563193,-823.0,0.00030089,2]
[322155691,1712856563213,-306.45256698,0.00030492,2]
[322155692,1712856563233,-170.221043,0.00030681,2]
[322155693,1712856563254,-675.34823128,0.0003136,2]
[322155694,1712856579014,221.2468728,0.0002849,2]
[322155736,1712856632282,-4068.68095015,0.00031359,4]
[322155738,1712856632292,-1210.91030182,0.00032,2]
[322155740,1712856632303,-184.0,0.00033,2]
[322155742,1712856632313,-306.45256698,0.00033004,2]
[322155744,1712856632323,-400.0,0.00033008,2]
[322155746,1712856632332,-400.0,0.00033008,2]
[322155747,1712856632342,-277.03921209,0.00033009,4]
[322155749,1712856632354,-435.73017158,0.00033009,4]
[322155750,1712856632367,-2616.08628575,0.00033009,4]
[322155751,1712856632377,-4539.5849275,0.00033362,2]
[322155752,1712856632388,-1167.44510371,0.00033662,4]
[322155753,1712856632399,-3286.7214119,0.00033663,4]
[322155754,1712856632423,-1175.97308708,0.00033663,4]
[322155757,1712856632441,-636.09426589,0.00033663,4]
[322155758,1712856632458,-273.58690413,0.00033663,4]
[322155759,1712856632471,-723.47987553,0.00033664,4]
[322155760,1712856632487,-705.32025395,0.00033664,4]
[322155761,1712856632502,-1258.29342554,0.00033664,4]
[322155762,1712856632519,-3895.05223282,0.00033665,4]
[322155763,1712856632556,-470.246646,0.00033665,4]
[322155803,1712856639101,-259.44214275,0.00033662,4]
[322155805,1712856639110,-785.95397145,0.00033662,2]
[322155807,1712856639120,-756.49464478,0.00033662,4]
[322155809,1712856639129,-408.38670531,0.00033663,4]
[322155811,1712856639138,-3117.26239042,0.00033665,4]
[322155813,1712856639148,-1997.15440807,0.00033665,4]
[322155815,1712856639158,-1027.37370794,0.00033665,4]
[322155817,1712856639166,-346.31012128,0.00033665,4]
[322155819,1712856639178,-925.75,0.00033665,4]
[322155822,1712856639190,-6501.99925289,0.00033665,4]
[322155824,1712856639199,-2813.63236231,0.00033665,4]
[322155826,1712856639209,-154.86062544,0.00033665,4]
[322155828,1712856639218,-155.89027091,0.00033748,7]
[322155830,1712856639228,-1210.91030182,0.0003392,2]
[322155832,1712856639237,-151.48387058,0.00034015,7]
[322155834,1712856639245,-30574.26303387,0.00034482,4]
[322155836,1712856639255,-4790.0986,0.00034492,30]
[322155838,1712856639265,-184.0,0.00034521,2]
[322155840,1712856639274,-151.48387058,0.00034535,7]
[322155842,1712856639283,-151.48387058,0.00034672,7]
[322155844,1712856639293,-153.0,0.00034923,2]
[322155846,1712856639302,-151.48387058,0.00034995,7]
[322155848,1712856639311,-157.24100892,0.00034997,4]
[322155850,1712856639320,-464.87522551,0.00034997,4]
[322155852,1712856639328,-178.49978816,0.00034998,4]
[322155854,1712856639340,-14695.0,0.00035,10]
[322155856,1712856639349,-159.12112488,0.00035,30]
[322155858,1712856639358,-669.10203133,0.00035,4]
[322155860,1712856639368,-596.36211063,0.00035256,2]
[322155862,1712856639377,-13765.33536037,0.00035258,4]
[322155864,1712856639387,-927.004965,0.00035352,2]
[322155866,1712856639396,-560.0,0.00035465,2]
[322155868,1712856639406,-306.45256698,0.00035516,2]
[322155869,1712856639418,-1376.37491703,0.00035578,4]
[322155872,1712856639427,-177.0,0.000356,10]
[322155874,1712856639436,-228.08283221,0.00035611,7]
[322155876,1712856639446,-2746.90801277,0.00035612,7]
[322155878,1712856639459,-2530.62745597,0.00035612,7]
[322155880,1712856639472,-612.09766529,0.00035612,7]
[322155882,1712856639486,-354.11181084,0.00035612,4]
[322155884,1712856639496,-100.30177336,0.00035613,4]
[322155887,1712856639508,-1657.30138885,0.00035613,4]
[322155889,1712856639518,-240.67684413,0.00035614,4]
[322155891,1712856639527,-155.64829461,0.00035614,4]
[322155893,1712856639537,-400.0,0.00035614,2]
[322155895,1712856639547,-407.69592082,0.00035614,4]
[322155897,1712856639557,-638.13221457,0.00035614,4]
[322155899,1712856639569,-248.66338199,0.00035614,4]
[322155901,1712856639578,-155.0,0.00035614,4]
[322155903,1712856639587,-1087.22335945,0.00035614,4]
[322155905,1712856639596,-3291.0761489,0.00035614,4]
[322155907,1712856639606,-188.6336911,0.00035614,2]
[322155909,1712856639618,-469.82638008,0.00035614,4]
[322155911,1712856639626,-162.62609934,0.00035614,4]
[322155913,1712856639636,-1963.01302248,0.00035614,4]
[322155915,1712856639645,-2578.714743,0.00035614,4]
[322155917,1712856639655,-371.7408397,0.00035614,4]
[322155919,1712856639665,-180.92490969,0.00035614,4]
[322155921,1712856639674,-413.53645611,0.00035614,4]
[322155923,1712856639684,-686.89505379,0.00035614,4]
[322155925,1712856639693,-1545.07343493,0.00035614,4]
[322155926,1712856639703,-207.14089809,0.00035614,4]
[322155928,1712856639714,-181.97055267,0.00035614,4]
[322155931,1712856639723,-1929.85499863,0.00035614,4]
[322155933,1712856639733,-155.0,0.00035614,4]
[322155935,1712856639743,-160.0,0.00035615,10]
[322155937,1712856639753,-1690.50648055,0.00035615,4]
[322155939,1712856639762,-14071.27142865,0.00035615,4]
[322155998,1712856640311,-154.86062544,0.00033661,4]
[322156000,1712856640320,-309.9280364,0.00035615,4]
[322156002,1712856640332,-367.733038,0.00035615,4]
[322156005,1712856640345,-1090.35511393,0.00035615,4]
[322156258,1712856643477,-1757.60316221,0.00033661,4]
[322156260,1712856643486,-1258.29342554,0.00035614,4]
[322156262,1712856643496,-3714.95317143,0.00035615,4]
[322156264,1712856643508,-8364.7,0.00035615,4]
[322156830,1712856653375,10244.08327362,0.0002849,2]
[322156831,1712856665192,1579.80828461,0.00021031,2]
[322156832,1712856911861,7768.87247455,0.00021031,2]
[322156836,1712857204482,153.78055294,0.0002093,2]
[322156837,1712857278381,19143.95477518,0.0002093,2]
[322156838,1712857294373,19143.95477518,0.0002093,2]
[322156839,1712857310378,14792.17121847,0.0002093,2]
[322156840,1712857400154,407.88528427,0.00021001,2]
[322156841,1712857401254,764.65957405,0.00021001,2]
[322156842,1712857402964,154.86062544,0.00021001,2]
[322156843,1712857406731,1964.94666504,0.00021001,2]
[322156844,1712857407274,538.47573593,0.00021001,2]
[322156845,1712857409705,1546.68192907,0.00021001,2]
[322156846,1712857414123,24900.0,0.00020008,2]
[322156847,1712857422340,1087.73357907,0.00021001,2]
[322156848,1712857426522,473.43587504,0.00021001,2]
[322156849,1712857427461,303.95639067,0.00021001,2]
[322156850,1712857430033,1486.45349515,0.00021001,2]
[322156851,1712857430063,154.86062544,0.00021001,2]
[322156852,1712857430378,22755.98720092,0.00021001,2]
[322156853,1712857430599,435.93996497,0.00021001,2]
[322156854,1712857430744,240.81178809,0.00021001,2]
[322156855,1712857430859,188.71573999,0.00021001,2]
[322156856,1712857432053,875.2599691,0.00021001,2]
[322156857,1712857433424,5569.16345896,0.00021001,2]
[322156858,1712857435946,2094.14637252,0.00021001,2]
[322156859,1712857436941,272.01530939,0.00021001,2]
[322156860,1712857438061,524.95978901,0.00021001,2]
[322156861,1712857440798,300.0,0.00021001,2]
[322156862,1712857442823,868.9127129,0.00021001,2]
[322156863,1712857442859,1308.15892502,0.00021001,2]
[322156864,1712857443759,300.0,0.00021001,2]
[322156865,1712857445139,563.04815704,0.00021001,2]
[322156866,1712857446924,687.50427823,0.00021001,2]
[322156867,1712857447767,282.87085409,0.00021001,2]
[322156868,1712857450433,263.56036207,0.00021001,2]
[322156869,1712857470613,1019.2599698,0.00020908,2]
[322156870,1712857534220,176.943579,0.00020407,2]
[322156871,1712857584668,2446.25979371,0.00021001,2]
[322156872,1712857593467,361.905895,0.0002025,2]
[322156873,1712857621470,300.0,0.00021001,2]
[322156874,1712857623317,2617.32975732,0.00021001,2]
[322156875,1712857625154,-5786.1213342,0.00021002,2]
[322156876,1712857625180,-300.0,0.00021002,2]
[322156877,1712857625200,-1878.29113948,0.0002103,2]
[322156878,1712857625223,-439.5708532,0.00021122,2]
[322156879,1712857625244,-153.7805529,0.00021842,2]
[322156880,1712857625264,-153.7805529,0.00022753,2]
[322156881,1712857625285,-420.0,0.00022844,2]
[322156882,1712857625306,-420.0,0.00023102,2]
[322156883,1712857625327,-153.7805529,0.00023665,2]
[322156884,1712857625348,-925.40595442,0.0002405,2]
[322156885,1712857646152,-764.65957405,0.00021007,2]
[322156886,1712857646174,-93.85401537,0.0002405,2]
[322156887,1712857646195,-153.7805529,0.00024577,2]
[322156888,1712857646214,-200.0,0.00024658,2]
[322156889,1712857646234,-380.0,0.00024658,2]
[322156890,1712857646253,-587.0,0.0002485,2]
[322156891,1712857646273,-220.5439815,0.00025,2]
[322156892,1712857646293,-587.0,0.00025412,2]
[322156893,1712857646311,-187.90606758,0.00025414,2]
[322156894,1712857646331,-467.85668109,0.00025414,2]
[322156895,1712857646351,-153.7805529,0.00025488,2]
[322156896,1712857646370,-200.0,0.0002568,2]
[322156897,1712857646389,-153.7805529,0.000264,2]
[322156898,1712857646408,-823.0,0.00027031,2]
[322156899,1712857646428,-1019.25996979,0.00027191,3]
[322156900,1712857646545,-153.7805529,0.00027311,2]
[322156901,1712857646567,-823.0,0.00027954,2]
[322156902,1712857646587,-153.7805529,0.00028223,2]
[322156903,1712857646606,-154.86062544,0.0002849,2]
[322156904,1712857646625,-153.7805529,0.00029135,2]
[322156905,1712857646645,-1152.0,0.00029403,2]
[322156906,1712857646665,-210.74041414,0.0003,4]
[322156907,1712857646688,-153.7805529,0.00030046,2]
[322156908,1712857646709,-1019.25996979,0.00030333,5]
[322156909,1712857646729,-361.905895,0.00030375,2]
[322156910,1712857646748,-1167.44510371,0.00030747,4]
[322156911,1712857646769,-380.05680971,0.00030747,4]
[322156912,1712857646789,-7482.56126924,0.00030748,4]
[322156913,1712857646811,-1152.0,0.00030749,2]
[322156914,1712857646831,-667.72246568,0.00030749,4]
[322156915,1712857650096,-1329.43194239,0.00030749,4]
[322156916,1712857650118,-323.547508,0.00030749,4]
[322156917,1712857650139,-365.47162491,0.00030749,4]
[322156918,1712857650161,-548.02245487,0.0003075,4]
[322156919,1712857650180,-585.71588384,0.0003075,4]
[322156920,1712857650202,-723.47987553,0.00030751,4]
[322156921,1712857650223,-153.7805529,0.00030958,2]
[322156922,1712857650244,-12589.94553996,0.00031669,4]
[322156924,1712857748414,-193.09908054,0.00028647,2]
[322156925,1712857748433,-181.13273271,0.00028647,2]
[322156926,1712857748453,-1964.94666504,0.00028647,2]
[322156927,1712857748474,-473.79880408,0.00028648,2]
[322156928,1712857748493,-303.95639067,0.00029992,2]
[322156929,1712857748516,-154.86062544,0.00029993,2]
[322156930,1712857748540,-1308.15892502,0.00029994,2]
[322156931,1712857748562,-300.0,0.00029994,2]
[322156932,1712857748584,-300.0,0.00029994,2]
[322156933,1712857748604,-1087.73357907,0.00029995,2]
[322156934,1712857748625,-242.86748276,0.00029995,2]
[322156935,1712857748646,-22755.98720092,0.00029995,2]
[322156936,1712857748668,-154.86062544,0.00029996,2]
[322156937,1712857748688,-3292.64736883,0.00029996,2]
[322156938,1712857748708,-2581.208065,0.00029997,2]
[322156939,1712857748727,-210.74041414,0.0003,4]
[322156940,1712857748748,-1303.01390698,0.00030748,4]
[322156941,1712857748790,273.82950408,0.00028646,2]
[322156942,1712857767214,-6637.62974738,0.00028646,2]
[322156943,1712857767236,-185.68184053,0.00028646,2]
[322156945,1712857773141,-210.74041414,0.0003,4]
[322156946,1712857773166,-153.7805529,0.0003187,2]
[322156947,1712857773189,-1210.91030182,0.00032,2]
[322156948,1712857775273,256.40873114,0.00031999,4]
[322156992,1712857832479,-210.74041414,0.0003,4]
[322156994,1712857832495,-1027.37370794,0.00031866,4]
[322156997,1712857832512,-323.547508,0.00031867,4]
[322156999,1712857832521,-365.47162491,0.00031868,4]
[322157001,1712857832530,-723.47987553,0.00031869,4]
[322157003,1712857832540,-911.03637257,0.00031999,4]
[322157005,1712857832549,-153.7805529,0.00032781,2]
[322157007,1712857832559,-1461.44626747,0.00033473,4]
[322157009,1712857832570,-1090.61649673,0.00033474,4]
[322157011,1712857832579,-778.20405785,0.00033475,6]
[322157014,1712857832597,-241.05591194,0.00033475,6]
[322157017,1712857832607,-807.97581285,0.00033513,4]
[322157022,1712857832621,-303.21928897,0.00033513,4]
[322157025,1712857832631,-473.79880408,0.00033648,2]
[322157028,1712857832642,-154.21390957,0.00033654,7]
[322157031,1712857832653,-153.7805529,0.00033693,2]
[322157033,1712857832664,-1058.03239582,0.00033832,4]
[322157035,1712857832674,-1018.10553654,0.0003392,2]
[322157037,1712857832685,-150.45881885,0.00033991,7]
[322157039,1712857832694,-624.3876408,0.00034122,2]
[322157041,1712857832704,-153.5050713,0.00034363,7]
[322157043,1712857832715,-400.0,0.00034377,2]
[322157045,1712857832724,-400.0,0.00034377,2]
[322157047,1712857832734,-155.89027091,0.00034378,7]
[322157049,1712857832743,-153.7805529,0.00034604,2]
[322157051,1712857832751,-156.35832817,0.00034619,7]
[322157053,1712857832761,-155.89027091,0.00034659,7]
[322157055,1712857832772,-153.0,0.0003499,2]
[322157057,1712857832785,-153.0,0.0003499,2]
[322157059,1712857832795,-153.0,0.0003499,2]
[322157061,1712857832804,-153.0,0.0003499,2]
[322157063,1712857832814,-153.0,0.0003499,2]
[322157065,1712857832825,-153.0,0.0003499,2]
[322157067,1712857832837,-153.0,0.0003499,2]
[322157069,1712857832847,-153.0,0.0003499,2]
[322157071,1712857832858,-306.0,0.0003499,2]
[322157073,1712857832868,-309.9349453,0.00034996,4]
[322157075,1712857832879,-242.61659758,0.00034996,4]
[322157077,1712857832889,-697.34508784,0.00034996,4]
[322157079,1712857832898,-159.63865408,0.00034996,4]
[322157081,1712857832909,-288.26659925,0.00034996,4]
[322157083,1712857832919,-8287.82914152,0.00034996,4]
[322157576,1712857839171,-456.71221475,0.00033472,4]
[322157579,1712857839182,-3622.11213401,0.00033472,4]
[322157581,1712857839194,-5207.20535569,0.00033472,4]
[322157583,1712857839203,-3843.22920607,0.00034996,4]
[322157585,1712857839212,-4485.67124355,0.00034996,4]
[322157587,1712857839221,-623.90488631,0.00034996,4]
[322157589,1712857839230,-221.63830907,0.00034996,4]
[322157591,1712857839238,-340.89846798,0.00034996,4]
[322157593,1712857839248,-188.3211388,0.00034996,4]
[322157595,1712857839257,-184.42210436,0.00034996,4]
[322157597,1712857839266,-1083.48,0.00034997,2]
[322157599,1712857839275,-1083.48,0.00034997,2]
[322157601,1712857839284,-1083.48,0.00034997,2]
[322157603,1712857839293,-1083.48,0.00034997,2]
[322157605,1712857839302,-1083.48,0.00034997,2]
[322157607,1712857839311,-1083.48,0.00034997,2]
[322157609,1712857839320,-1083.48,0.00034997,2]
[322157611,1712857839329,-1083.48,0.00034997,2]
[322157612,1712857839338,-1083.55,0.00034997,2]
[322157614,1712857839347,-254.76142661,0.00034997,7]
[322157617,1712857839356,-156.68813882,0.00034997,7]
[322157619,1712857839366,-500.0,0.00034997,7]
[322157621,1712857839375,-459.21606194,0.00034997,7]
[322157622,1712857839384,-383.22313028,0.00034997,7]
[322157624,1712857839393,-476.79494397,0.00034997,7]
[322157626,1712857839403,-181.40027232,0.00034997,7]
[322157628,1712857839412,-553.35702358,0.00034997,7]
[322157630,1712857839421,-500.0,0.00034997,7]
[322157632,1712857839430,-2935.70815242,0.00034998,4]
[322157634,1712857839439,-2620.8863018,0.00034998,4]
[322157636,1712857839449,-3588.4191585,0.00034998,4]
[322157638,1712857839458,-3656.46031129,0.00034998,4]
[322157640,1712857839467,-267.08067075,0.00034998,4]
[322157642,1712857839478,-334.20602818,0.00034998,4]
[322157644,1712857839487,-342.49538997,0.00034998,4]
[322157646,1712857839496,-1466.61272517,0.00034998,4]
[322157648,1712857839505,-561.44051241,0.00034998,4]
[322157650,1712857839514,-3323.33707912,0.00034998,4]
[322157652,1712857839523,-1866.00896233,0.00034998,4]
[322157654,1712857839532,-3718.21894048,0.00034998,4]
[322157655,1712857839542,-425.38105306,0.00034998,4]
[322157656,1712857839552,-207.18381603,0.00034998,4]
[322157658,1712857839563,-68454.07423623,0.00034998,4]
[322157660,1712857839572,-1776.25324486,0.00035,5]
[322157662,1712857839581,-5000.00000001,0.00035,5]
[322157663,1712857839590,-596.36211063,0.00035,2]
[322157665,1712857839600,-69772.076264,0.00035,30]
[322157683,1712857840689,-72902.63157772,0.00035,30]
[322157684,1712857840699,-669.10203133,0.00035,4]
[322157685,1712857840708,-267.75977256,0.00035,2]
[322157686,1712857840717,-150.8642222,0.00035113,2]
[322157687,1712857840727,-154.21390957,0.00035352,7]
[322157688,1712857840736,-1332.001332,0.00035437,6]
[322157689,1712857840746,-154.21390957,0.00035493,7]
[322157690,1712857840756,-153.7805529,0.00035516,2]